Cogmind - Beta 13 @@@ ROGUE MODE // 2024.06.07 @ 16:02:37 Player: Castelle Result: Destroyed by D-53 Grenadier with Mini Grenade Launcher Performance ------------- Evolutions (0) 0 Regions Visited (2) 400 Robots Destroyed (21) 105 Value Destroyed (350) 350 Prototype IDs (0) 0 Alien Tech Used (0) 0 Bonus (0) 0 TOTAL SCORE: 855 Bonus ------- None Cogmind --------- Core Integrity 0/250 Matter 300/300 Energy 98/100 System Corruption 3% Temperature Cool (0) Movement Core (50) Location -10/Mines Parts ------- > --- POWER (1) -------- (None) > --- PROPULSION (2) --- (None) > --- UTILITY (2) ------ (None) > --- WEAPON (2) ------- (None) > --- INVENTORY (5) ---- Light Ion Engine Light Nuclear Core Heat Sink Particle Gun Light EM Pulse Cannon Peak State ------------ > --- POWER ------------ Light Nuclear Core > --- PROPULSION ------- Aluminum Leg Aluminum Leg > --- UTILITY ---------- Small Storage Unit Seismic Detector > --- WEAPON ----------- Light EM Pulse Cannon Light EM Pulse Cannon > --- INVENTORY -------- Ion Engine Light Ion Engine Aluminum Leg Heat Sink Improved Terrain Scanner ECM Suite Small Laser Particle Gun [Rating: 12] Favorites ----------- Power Ion Engine Engine Ion Engine Power Core Light Nuclear Core Propulsion Aluminum Leg Leg Aluminum Leg Utility Small Storage Unit Device Seismic Detector Storage Small Storage Unit Weapon Medium Laser Energy Gun Medium Laser Energy Cannon Light EM Pulse Cannon Ballistic Gun Light Assault Rifle Special Melee Weapon Datajack Build | -11 -10 -10 ------- Run | Yrd Mat Min Slots Evolved . | . . . Power . | . . . Propulsion . | . . . Utility . | . . . Weapon . | . . . Parts Attached 22 | 8 12 2 Power 3 | 1 2 . Engine 2 | 1 1 . Core 1 | . 1 . Reactor . | . . . Propulsion 8 | 2 5 1 Treads . | . . . Leg 8 | 2 5 1 Wheel . | . . . Hover . | . . . Flight . | . . . Utility 5 | 3 2 . Device 4 | 2 2 . Storage 1 | 1 . . Processor . | . . . Hackware . | . . . Protection . | . . . Artifact . | . . . Weapon 6 | 2 3 1 Energy Gun 1 | 1 . . Energy Cannon 3 | . 2 1 Ballistic Gun 1 | 1 . . Ballistic Cannon . | . . . Launcher . | . . . Special Weapon . | . . . Impact Weapon . | . . . Slashing Weapon . | . . . Piercing Weapon . | . . . Special Melee Weapon 1 | . 1 . Unidentified Prototypes . | . . . Parts Lost 7 | . 2 5 Power . | . . . Propulsion 3 | . 1 2 Utility 2 | . 1 1 Weapon 2 | . . 2 Highest Loss Streak 5 | . 1 5 To Critical Strikes . | . . . Average Slot Usage (%) 97 | . 99 47 Engine 8 | . 8 9 Core 5 | . 5 . Leg 27 | . 27 14 Device 13 | . 13 4 Storage 13 | . 14 9 Energy Gun 9 | . 10 . Energy Cannon 7 | . 7 4 Ballistic Gun 9 | . 10 . Naked Turns 6 | . . 6 Heaviest Build 19 | 14 19 16 Greatest Support 20 | 20 20 20 Greatest Overweight (x) 2 | 2 1 . Average Overweight (x) . | . . . Largest Inventory Capacity 8 | 8 8 8 Average Capacity 7 | 7 8 7 Most Carried 8 | 5 8 8 Average Carried 6 | 3 7 6 Final Capacity 8 | 8 8 5 Final Carried 8 | 5 8 5 Class Distribution -------------------- 69% | Mutant 30% | Scavenger-Mutant Dominant Class ---------------- Mutant | -10/Materials Mutant | -10/Mines Resources | -11 -10 -10 ----------- Run | Yrd Mat Min Matter Collected 495 | 330 150 15 Remotely . | . . . Salvage Created 665 | 323 328 14 Parts 40 | 29 11 . Haulers Intercepted . | . . . Recyclers Shooed . | . . . Parts Field Recycled . | . . . Retrieved Matter . | . . . Parts Self-Destructed . | . . . Prevented . | . . . Kills | -11 -10 -10 ------- Run | Yrd Mat Min Combat Hostiles Destroyed 8 | . 7 1 Guns 6 | . 6 . Cannons 1 | . . 1 Classes Destroyed 5 | 3 1 1 Worker 4 | 4 . . Tunneler 9 | 9 . . Recycler 1 | 1 . . Grunt 7 | . 7 . Assembled 1 | . . 1 Best Kill Streak 5 | 5 2 1 Combat Bots Only 2 | . 2 1 Max Kills in Single Turn 1 | 1 1 1 Gunslinging . | . . . Exploded . | . . . Melee . | . . . Uniques/NPCs Destroyed . | . . . Combat | -11 -10 -10 -------- Run | Yrd Mat Min Hostile Shots Fired 91 | . 52 39 Missed 27 | . 16 11 Damage Taken 1033 | . 489 544 Core 255 | . 104 151 Absorbed by Shields . | . . . Core Remaining (%) 100 | 100 . . Volleys Fired 94 | 50 42 2 Largest 2 | 2 2 2 Hottest 112 | 70 112 112 Shots Fired 173 | 100 69 4 Gun 163 | 100 63 . Cannon 10 | . 6 4 Launcher . | . . . Special . | . . . Kinetic 79 | 50 29 . Thermal 84 | 50 34 . Explosive . | . . . Electromagnetic 10 | . 6 4 Robot Hit Streak 8 | 6 8 3 Robot Miss Streak 5 | 5 2 1 Penetration Max . | . . . Secondary Targets . | . . . Shots Hit Robots 108 | 50 55 3 Core Hits 36 | 19 16 1 Critical Kills 1 | 1 . . Critical Parts Destroyed . | . . . Critical Strikes 4 | 3 1 . Burn 3 | 2 1 . Destroy 1 | 1 . . Melee Attacks 2 | . 2 . Impact . | . . . Slashing . | . . . Piercing . | . . . Sneak Attacks 2 | . 2 . Combat Hostiles . | . . . Follow-up Attacks . | . . . Damage Inflicted 1168 | 511 579 78 Guns 981 | 511 470 . Cannons 173 | . 95 78 Explosions . | . . . Melee . | . . . Ramming 14 | . 14 . Kinetic 384 | 199 185 . Thermal 597 | 312 285 . Explosive . | . . . Electromagnetic 173 | . 95 78 Impact . | . . . Slashing . | . . . Piercing . | . . . Highest Corruption 3 | . 1 3 Average Corruption 1 | . 1 2 Corruption Purged . | . . . Corruption Blocked . | . . . Overload Shots . | . . . Overflow Damage . | . . . Projectiles . | . . . Explosions . | . . . Melee . | . . . Knockbacks . | . . . Impact . | . . . Kinetic . | . . . Secondary . | . . . Self-Inflicted Damage . | . . . Shots . | . . . Rammed . | . . . Targets Rammed 2 | . 2 . Kicked 2 | . 2 . Crushed . | . . . Highest Temperature 381 | 164 381 122 Average Temperature 89 | 52 134 69 Received Heat Transfer 375 | . 315 60 Effects 5 | . 5 . Shutdowns 1 | . 1 . Interference 3 | . 3 . Matter Decay 1 | . 1 . Siege Activations . | . . . Robots Corrupted 1 | . 1 . Combat Hostiles 1 | . 1 . Parts Fried . | . . . Impact Corruptions . | . . . Robots Melted . | . . . Combat Hostiles . | . . . Parts Melted 4 | 2 2 . Heat Transferred 1998 | 1073 925 . Parts Sabotaged . | . . . Parts Stolen . | . . . Parts Stripped . | . . . Power Chain Reactions . | . . . Alert | -11 -10 -10 ------- Run | Yrd Mat Min Peak Influence 127 | 70 127 17 Initial 17 | . . 17 Average 56 | 36 65 5 Maximum Alert Level . | . . . Low Security (%) 100 | 100 100 100 Level 1 . | . . . Level 2 . | . . . Level 3 . | . . . Level 4 . | . . . Level 5 . | . . . High Security . | . . . Max Security . | . . . Squads Dispatched 2 | . 2 . Investigation . | . . . Extermination . | . . . Reinforcement 2 | . 2 . Assault . | . . . Garrison . | . . . Intercept . | . . . Searches Triggered . | . . . Construction Impeded . | . . . Haulers Reinforced . | . . . Active Scanning Responses . | . . . Cargo Convoy Interrupts . | . . . Stealth | -11 -10 -10 --------- Run | Yrd Mat Min Distress Signals 1 | . 1 . Communications Jammed . | . . . Distress Signals . | . . . Times Spotted 39 | . 17 22 Peak Tracking Total 20 | . 5 20 Tactical Retreats 1 | . 1 . Traps | -11 -10 -10 ------- Run | Yrd Mat Min Traps Triggered 3 | . 3 . Indirectly . | . . . Trap Hack Attempts . | . . . Triggered . | . . . Disarmed . | . . . Reprogrammed . | . . . Reused . | . . . Traps Extracted . | . . . Installed . | . . . Triggered . | . . . Machines | -11 -10 -10 ---------- Run | Yrd Mat Min Machines Disabled . | . . . Max in Single Turn . | . . . Machines Repaired . | . . . Machines Dismantled . | . . . Machines Sabotaged . | . . . Overloaded Fab Kills . | . . . Hacking | -11 -10 -10 --------- Run | Yrd Mat Min Machines Accessed 5 | . 5 . Terminals 3 | . 3 . Fabricators . | . . . Repair Stations . | . . . Recycling Units 2 | . 2 . Scanalyzers . | . . . Garrison Access . | . . . Total Hacks 6 | . 6 . Successful 5 | . 5 . Failed 1 | . 1 . Catastrophic . | . . . Database Lockouts . | . . . Manual . | . . . Terminals 3 | . 3 . Fabricators . | . . . Repair Stations . | . . . Recycling Units 3 | . 3 . Scanalyzers . | . . . Garrison Access . | . . . Terminal Hacks 3 | . 3 . Record 1 | . 1 . Robot Analysis 2 | . 2 . Fabricator Hacks . | . . . Repair Station Hacks . | . . . Recycling Unit Hacks 2 | . 2 . Retrieve Components 2 | . 2 . Scanalyzer . | . . . Garrison Access Hacks . | . . . Unauthorized Hacks . | . . . Terminals . | . . . Fabricators . | . . . Repair Stations . | . . . Recycling Units . | . . . Scanalyzers . | . . . Garrison Access . | . . . Data Cores Recovered . | . . . Used . | . . . Hacking Detections 2 | . 2 . Full Trace Events . | . . . Feedback Events . | . . . Feedback Blocked . | . . . Robot Schematics Acquired . | . . . Robots Built . | . . . Authchips . | . . . Time . | . . . Total Robot Build Rating . | . . . Part Schematics Acquired . | . . . Parts Built . | . . . Authchips . | . . . Time . | . . . Total Part Build Rating . | . . . Parts Repaired . | . . . Time . | . . . Parts Recycled . | . . . Recycled Matter . | . . . Retrieved Matter . | . . . Retrieved Components 11 | . 11 . Parts Scanalyzed . | . . . Part Schematics Acquired . | . . . Parts Damaged . | . . . Bothacking | -11 -10 -10 ------------ Run | Yrd Mat Min Used RIF Installer . | . . . Robots Hacked 1 | . 1 . Non-combat 1 | . 1 . Combat . | . . . Robot Hacks Applied 2 | . 2 . parse_system 1 | . 1 . no_distress 1 | . 1 . Relay Couplers Released . | . . . Fabnet Peak Effective % . | . . . Robots Rewired . | . . . Allies Hacked . | . . . Hacks Repelled . | . . . Allies | -11 -10 -10 -------- Run | Yrd Mat Min Total Allies . | . . . Largest Group . | . . . Highest-Rated Group . | . . . Highest-Rated Ally . | . . . Total Orders . | . . . Ally Attacks . | . . . Total Damage . | . . . Kills . | . . . Allies Corrupted . | . . . Allies Melted . | . . . Intel | -11 -10 -10 ------- Run | Yrd Mat Min Robot Analysis Total 2 | . 2 . Derelict Logs Recovered . | . . . Drone Launches . | . . . Drone Recoveries . | . . . Exploration | -11 -10 -10 ------------- Run | Yrd Mat Min Turns Passed 1459 | 426 1012 21 Spaces Moved 849 | 176 655 18 Core 25 | 12 . 13 Treads . | . . . Legs 824 | 164 655 5 Wheels . | . . . Hover . | . . . Flight . | . . . Fastest Speed 50 | 50 120 50 Average Speed 118 | 119 120 69 Slowest Speed 190 | 150 190 120 Overloaded Moves . | . . . Propulsion Burnouts . | . . . Robots Hopped . | . . . Cave-ins Triggered . | . . . Exploration Rate (%) 36 | 7 87 16 Regions Visited 2 Branch Regions 1 Pre-discovered Areas . | . . . Known Exits Taken . | . . . Unknown Exits Taken 2 | 1 1 . Scrap Searched 1 | . . 1 Spaces Dug . | . . . Terrain Destroyed . | . . . Melee . | . . . Projectile . | . . . AOE . | . . . Terrain Rammed . | . . . Walls Destroyed . | . . . Machines Disabled . | . . . Actions | -11 -10 -10 --------- Run | Yrd Mat Min Total 1136 | 298 815 23 Wait 146 | 60 86 . Move 847 | 175 654 18 Hop . | . . . Pick Up 13 | 4 9 . Fast Attach 12 | 8 4 . Attach 4 | . 2 2 Detach 1 | 1 . . Swap 6 | . 6 . Drop 9 | . 8 1 Fire 94 | 50 42 2 Melee 2 | . 2 . Ram . | . . . Kick 2 | . 2 . Crush . | . . . Escape Stasis . | . . . Rewire . | . . . Trap . | . . . Miscellaneous . | . . . Route ------- -11/Scrapyard -10/Materials (discovered 5 exits: [*Mat x3] / [*Min x2]) -10/Mines History --------- Turn | Location | Event 8 | -11/Scrapyard | Discovered new exit (range 16) 427 | -11/Scrapyard | Entered Materials 428 | -10/Materials | Build established: Mutant 735 | -10/Materials | Discovered new exit (range 4) 950 | -10/Materials | Discovered new exit (range 14) 957 | -10/Materials | Discovered new exit (range 16) 1012 | -10/Materials | Discovered new exit (range 6) 1146 | -10/Materials | Build established: Scavenger-Mutant 1288 | -10/Materials | Discovered new exit (range 12) 1439 | -10/Materials | Entered Mines 1440 | -10/Mines | Assembled infested the area 1450 | -10/Mines | Core integrity fell below 50% 1454 | -10/Mines | Core integrity fell below 20% 1454 | -10/Mines | Released all parts (2) 1460 | -10/Mines | Destroyed by D-53 Grenadier with Mini Grenade Launcher Last Messages --------------- 01445_ System corrupted by crushing effect (+2). 01445_ Destroyed Asb. Hover Unit. 01447_ Lgt. EM Pulse Cannon destroyed. 01447_ Aluminum Leg severed. 01447_ Aluminum Leg destroyed. 01448_ Lgt. EM Pulse Cannon destroyed. 01448_ Knocked back. 01453_ Aluminum Leg destroyed. 01454_ Released Sml. Storage Unit. 01454_ Released Ion Engine. 01456_ HV Slug penetrates Wall. 01457_ Searching scrap... 01457_ Found Weapon Shielding. 01457_ Found Structural Scanner. 01457_ Found 18 Matter. 01458_ Acquired 15 matter. 01460_ C-30 ARC bursts open, deploying its payload. 01460_ D-53 Grenadier unfolds itself. 01460_ R-06 Scavenger destroyed. Map ----- +----------------------------------------------------+ | ?????????????????????????????????????????????????? | | ?????????????????????????????????????????????????? | | ?????????????????????????????????????????????????? | | ?????????????????????????????????????????????????? | | ?????????????????????????????????????????????????? | | ?????????????????????????????????????????????????? | | ?????????????????????????????????????????????????? | | ?????????????????????????????????????????????????? | | ?????????????????????????????????????????????????? | | ?????????????????????????????????????????????????? | | ?????????????????????????????????????????????????? | | ?????????????????????????????????????????????????? | | ?????????????????????????????????????????????????? | | ?????????????????????????????????????????????????? | | ?????????????????????????????????????????????????? | | ??????????????????###?????##?????????????????????? | | ?????????????????## #???# ????#????????????????? | | ????????????????## ### ??? ###??????????????? | | ?????????????????t ?? ???????????????? | | ?????????????????? ??? ????????????????? | | ???????????????????# ?? #?????????????????? | | ????????????????????# =d ? ??????????????????? | | ?????????????????????#%%d ???????????????????? | | ?????????????????????##* ????????????????????? | | ?????????????????????# #?????????????????????? | | ??????????????????????# @ #?????????????????????? | | ??????????????????????## ##????????????????????? | | ???????????????????????# ####?????????????????? | | ???????????????????????### #?????????????????? | | ?????????????????????????# #?????????????????? | | ?????????????????????????####!%#????#????????????? | | ????????????????????????????#! #??? #????????????? | | ????????????????????????????# #?# #????????????? | | ???????????????????????????## # #????????????? | | ?????????????????????????### ##???????????? | | ????????????????????????## ##??????????? | | ???????????????????????## ! ##?????????? | | ??????????????????????## *! #????????? | | ??????? ############# #### #??????? | | ?????? ##????## #?????? | | ????????? $% ##????????? ??????? | | ????????????###### =/ ##?????????????????? | | ?????????????????# ##??????????????????? | | ?????????????????## ##???????????????????? | | ??????????????????## #????????????????????? | | ???????????????????## #????????????????????? | | ????????????????????## #????????????????????? | | ?????????????????????### ##????????????????????? | | ???????????????????????#####?????????????????????? | | ?????????????????????????????????????????????????? | +----------------------------------------------------+ Best States ------------- Heat Dissipation 35 Energy Generation 14 Energy Capacity 250 Matter Stores 300 Matter Capacity 300 Sight Range 16 Terrain Scan Range 16 Terrain Scan Density 10 Evasion (%) 55 Item Schematics ----------------- None Robot Schematics ------------------ None Fabricated ------------ Nothing Alien Tech Used ----------------- None Achievements -------------- Hunted Challenges ------------ None Game ------ Seed GravityInertialMultirail Manual? 0 Play Time 00:18:05 Cumulative 13.3 hours Start 2024.06.07 @ 15:45:15 End 2024.06.07 @ 16:02:37 Sessions 1 Manual Loads 0 Difficulty Rogue Special Mode None Game No. 11 Rogue 6 Adventurer 5 Explorer 0 Win Type - Total 0 Types 0/0/0/0/0/0/0/0/0 Lore% 6 Gallery% 17 Achievement% 18 Wizard Run 0 Options --------- Layout 2 ASCII 0 Keyboard 1 Movement Numpad Keybinds 0 Fullscreen 1 Font 24/Smallcaps Map View 50x44 Zoom Use 0% Tactical HUD 1 Map Filters NONE Filters NONE Steam 1 RUN: cd24eeb4-497d-4ab9-a2ae-7290b10fecc0